bitfinex/quotes_SOLUSD_20251106
["timestamp","ask_amount","ask_price","bid_price","bid_amount"]
[1762425370248,63.11003917,159.53,159.52,0.2]
[1762425370453,63.78003917,159.53,159.52,0.2]
[1762425370668,114.56359085,159.53,159.52,0.2]
[1762425370865,113.78003917,159.53,159.52,0.2]
[1762425372568,123.160832,159.53,159.52,0.2]
[1762425372745,130.600832,159.53,159.52,0.2]
[1762425373049,129.81728032,159.53,159.52,0.2]
[1762425373457,114.37841346,159.53,159.52,0.2]
[1762425373638,130.600832,159.53,159.52,0.2]
[1762425373840,129.81728032,159.53,159.52,0.2]
[1762425374755,50.0,159.49,159.43,0.7]
[1762425375070,5.65003917,159.46,159.43,0.7]
[1762425375275,7.44,159.45,159.43,0.7]
[1762425375449,7.44,159.45,159.41,20.592]
[1762425375642,13.09003917,159.45,159.39,5.65003917]
[1762425375845,13.09003917,159.45,159.42,0.7]
[1762425376669,5.65003917,159.44,159.42,0.7]
[1762425377163,7.44,159.45,159.42,0.7]
[1762425377346,13.09003917,159.45,159.42,0.7]
[1762425378271,7.44,159.44,159.42,0.7]
[1762425378564,50.0,159.51,159.43,5.65003917]
[1762425378765,7.44,159.49,159.45,5.65003917]
[1762425378953,5.65003917,159.48,159.44,0.7]
[1762425379148,5.65003917,159.47,159.42,12.62274797]
[1762425379353,7.44,159.46,159.43,6.35003917]
[1762425379564,55.65003917,159.49,159.44,5.65003917]
[1762425379761,5.65003917,159.46,159.43,0.7]
[1762425380069,7.44,159.45,159.43,0.7]
[1762425380849,5.65003917,159.48,159.43,0.7]
[1762425381054,20.592,159.49,159.43,0.7]
[1762425381365,7.44,159.48,159.43,0.7]
[1762425381672,7.44,159.48,159.44,5.65003917]
[1762425382072,7.44,159.48,159.45,0.7]
[1762425384267,57.96916531,159.46,159.41,0.68]
[1762425384449,7.96916531,159.44,159.39,0.68]
[1762425384654,7.44,159.43,159.39,0.68]
[1762425384946,7.44,159.43,159.38,17.957993]
[1762425384947,7.96916531,159.41,159.38,0.2]
[1762425385151,7.96916531,159.4,159.38,0.2]
[1762425385369,7.44,159.39,159.38,0.2]
[1762425385777,7.44,159.39,159.38,0.88]
[1762425386279,78.56116531,159.43,159.38,0.88]
[1762425386450,7.44,159.42,159.39,0.68]
[1762425386970,7.44,159.41,159.39,0.68]
[1762425387176,7.96916531,159.42,159.39,0.68]
[1762425387471,7.44,159.41,159.39,0.68]
[1762425388694,7.44,159.4,159.39,0.68]
[1762425390875,7.44,159.4,159.39,6.95391931]
[1762425391076,7.44,159.4,159.39,0.68]
[1762425391601,15.40916531,159.4,159.38,0.2]
[1762425391975,7.96916531,159.41,159.39,0.68]
[1762425392188,7.42,159.4,159.39,0.68]
[1762425392604,7.42,159.4,159.38,0.2]
[1762425392771,7.42,159.4,159.38,0.88]
[1762425393606,7.42,159.4,159.39,0.68]
[1762425393896,7.42,159.4,159.39,8.64916531]
[1762425394910,7.96916531,159.45,159.39,8.64916531]
[1762425395089,7.42,159.44,159.4,0.68]
[1762425395281,7.42,159.44,159.38,0.2]
[1762425395282,7.96916531,159.41,159.38,0.2]
[1762425395481,7.42,159.4,159.38,0.2]
[1762425395780,7.42,159.4,159.38,0.88]
[1762425396216,7.42,159.4,159.38,7.15428306]
[1762425396408,0.66,159.44,159.39,8.64916531]
[1762425396409,7.96916531,159.44,159.39,8.64916531]
[1762425396577,7.42,159.43,159.4,7.96916531]
[1762425396779,7.42,159.42,159.4,8.64916531]
[1762425397008,7.42,159.41,159.4,7.96916531]
[1762425397412,7.42,159.41,159.4,8.64916531]
[1762425397579,7.42,159.41,159.4,0.68]
[1762425398676,7.42,159.41,159.38,0.88]
[1762425399109,7.96916531,159.4,159.38,0.2]
[1762425399484,7.42,159.39,159.38,0.2]
[1762425400207,7.96916531,159.41,159.38,0.2]
[1762425400392,7.42,159.39,159.38,0.2]
[1762425400704,7.96916531,159.4,159.38,0.2]
[1762425400904,7.42,159.39,159.38,0.2]
[1762425401910,7.42,159.39,159.38,0.88]
[1762425402411,100.0,159.47,159.38,15.12347827]
[1762425402714,28.56116531,159.44,159.39,8.64916531]
[1762425402924,7.42,159.43,159.39,8.64916531]
[1762425403202,20.592,159.46,159.41,7.96916531]
[1762425403416,7.42,159.45,159.4,0.68]
[1762425403616,28.56116531,159.46,159.4,14.92236998]
[1762425403787,7.42,159.45,159.42,7.96916531]
[1762425404107,7.42,159.44,159.41,8.64916531]
[1762425404403,0.67,159.44,159.4,7.96916531]
[1762425404602,7.42,159.43,159.4,7.96916531]
[1762425404804,57.96916531,159.45,159.4,8.64916531]
[1762425404993,7.42,159.44,159.41,0.68]
[1762425405198,57.96916531,159.45,159.41,0.68]
[1762425405199,50.0,159.45,159.41,0.68]
[1762425405384,7.42,159.44,159.41,0.68]
[1762425406007,50.0,159.45,159.41,0.68]
[1762425406304,29.23116531,159.46,159.4,7.96916531]
[1762425406305,28.56116531,159.46,159.4,7.96916531]
[1762425406483,7.42,159.45,159.41,0.68]
[1762425407200,50.0,159.43,159.38,0.2]
[1762425407401,8.09,159.44,159.38,8.16916531]
[1762425407601,7.42,159.44,159.4,7.96916531]
[1762425407805,7.42,159.43,159.4,7.96916531]
[1762425408302,100.67,159.45,159.4,7.96916531]
[1762425408500,7.42,159.44,159.4,7.96916531]
[1762425408717,7.42,159.44,159.4,8.64916531]
[1762425408903,50.67,159.45,159.4,8.64916531]
[1762425409292,57.96916531,159.48,159.42,7.96916531]
[1762425409497,0.67,159.47,159.42,7.96916531]
[1762425409797,7.42,159.46,159.42,7.96916531]
[1762425410005,21.262,159.47,159.42,8.64916531]
[1762425410301,7.42,159.46,159.43,8.64916531]
[1762425410500,20.592,159.47,159.43,0.68]
[1762425410720,7.42,159.46,159.43,8.64916531]
[1762425411100,20.592,159.47,159.43,8.64916531]
[1762425411516,21.262,159.47,159.42,7.96916531]
[1762425411700,20.592,159.47,159.43,0.68]
[1762425411902,20.592,159.47,159.44,7.96916531]
[1762425412406,7.42,159.46,159.44,8.65916531]
[1762425412616,20.592,159.47,159.44,8.65916531]
[1762425412818,7.42,159.46,159.44,0.69]
[1762425413003,79.23116531,159.47,159.42,0.69]
[1762425413207,79.23116531,159.47,159.42,8.65916531]
[1762425413407,7.42,159.46,159.42,8.65916531]
[1762425413615,79.23116531,159.47,159.42,8.65916531]
[1762425414100,7.42,159.46,159.42,8.65916531]
[1762425414301,79.23116531,159.47,159.42,8.65916531]
[1762425414604,28.56116531,159.47,159.43,0.69]
[1762425415194,7.96916531,159.44,159.39,0.69]
[1762425415399,15.36916531,159.43,159.38,8.85916531]
[1762425415593,7.4,159.42,159.38,8.85916531]
[1762425415810,8.63916531,159.42,159.38,0.2]
[1762425416027,7.4,159.41,159.38,0.2]
[1762425416599,8.07,159.41,159.38,0.2]
[1762425416909,8.63916531,159.41,159.38,0.2]
[1762425417214,7.4,159.4,159.38,0.2]
[1762425417414,7.96916531,159.4,159.38,0.2]
[1762425417616,8.63916531,159.4,159.38,0.2]
[1762425418411,7.4,159.39,159.38,0.2]
[1762425419116,7.96916531,159.39,159.38,0.2]
[1762425419424,7.4,159.39,159.38,0.2]
[1762425419728,7.96916531,159.4,159.38,0.2]
[1762425419925,7.4,159.39,159.38,0.2]
[1762425420124,58.63916531,159.39,159.38,0.2]
[1762425420304,72.31308462,159.39,159.38,0.2]
[1762425420503,64.91308462,159.39,159.38,0.2]
[1762425420799,65.69732453,159.39,159.38,0.2]
[1762425421119,58.63916531,159.39,159.38,0.2]
[1762425421705,50.0,159.43,159.38,0.89]
[1762425421905,57.96916531,159.43,159.38,8.85916531]
[1762425422106,27.992,159.42,159.39,0.69]
[1762425422322,86.63116531,159.42,159.38,0.2]
[1762425422623,7.96916531,159.41,159.38,0.2]
[1762425422824,7.4,159.4,159.38,0.2]
[1762425424114,7.4,159.39,159.38,0.2]
[1762425424311,65.36916531,159.39,159.38,0.2]
[1762425424518,136.63116531,159.39,159.38,0.2]
[1762425424706,20.592,159.39,159.38,0.2]
[1762425425027,27.992,159.39,159.38,0.2]
[1762425425401,20.592,159.39,159.38,0.2]
[1762425425603,50.0,159.43,159.38,0.89]
[1762425425843,50.67,159.45,159.38,15.13346049]
[1762425425844,7.4,159.42,159.38,15.13346049]
[1762425426125,20.592,159.42,159.39,8.65916531]
[1762425426342,7.4,159.41,159.39,8.65916531]
[1762425426541,7.4,159.4,159.39,8.65916531]
[1762425426827,50.0,159.45,159.39,14.24308462]
[1762425427032,108.63916531,159.47,159.41,7.96916531]
[1762425427333,20.592,159.44,159.4,7.96916531]
[1762425427540,7.4,159.43,159.4,8.65916531]
[1762425427732,7.4,159.43,159.41,0.69]
[1762425428442,20.592,159.44,159.41,0.69]
[1762425428626,7.4,159.43,159.41,0.69]
[1762425428826,20.592,159.44,159.41,0.69]
[1762425429543,7.4,159.43,159.41,0.69]
[1762425430227,20.592,159.44,159.4,7.96916531]
[1762425430426,104.7,159.42,159.4,8.65916531]
[1762425430629,7.4,159.41,159.39,14.24305243]
[1762425430824,7.4,159.4,159.39,7.96916531]
[1762425431022,104.7,159.42,159.39,7.96916531]
[1762425431220,104.7,159.42,159.4,0.69]
[1762425431417,7.4,159.41,159.4,0.69]
[1762425432125,112.66916531,159.42,159.38,0.2]
[1762425432338,113.33916531,159.42,159.38,0.89]
[1762425432536,7.4,159.41,159.38,0.89]
[1762425432937,57.96916531,159.41,159.38,0.2]
[1762425433121,112.1,159.4,159.38,0.2]
[1762425433629,7.4,159.39,159.38,0.2]
[1762425433827,104.7,159.4,159.38,0.2]
[1762425434024,7.4,159.39,159.38,0.2]
[1762425435039,104.7,159.4,159.38,7.16425183]
[1762425435234,7.4,159.39,159.38,7.16425183]
[1762425435432,7.4,159.39,159.38,14.44341714]
[1762425435638,104.7,159.4,159.38,0.2]
[1762425435832,7.4,159.39,159.38,0.2]
[1762425436028,104.7,159.4,159.39,0.69]
[1762425436541,112.1,159.4,159.39,0.69]
[1762425436947,112.1,159.4,159.38,8.16916531]
[1762425436948,104.7,159.4,159.38,0.2]
[1762425437117,7.4,159.39,159.38,0.2]
[1762425437541,7.4,159.39,159.38,0.89]
[1762425437917,104.7,159.4,159.38,0.89]
[1762425438118,7.38,159.39,159.38,0.89]
[1762425439025,104.7,159.4,159.38,0.89]
[1762425439223,105.37,159.4,159.38,0.2]
[1762425439438,104.7,159.4,159.38,0.2]
[1762425439745,7.38,159.39,159.38,0.2]
[1762425441032,104.7,159.4,159.38,0.2]
[1762425441248,7.38,159.39,159.38,0.2]
[1762425442049,8.63916531,159.42,159.38,0.2]
[1762425442429,7.38,159.41,159.38,0.2]
[1762425442836,8.63916531,159.42,159.38,0.2]
[1762425443235,50.67,159.41,159.38,0.2]
[1762425443546,50.0,159.41,159.38,0.2]
[1762425443745,50.67,159.41,159.38,0.2]
[1762425443948,7.38,159.4,159.38,0.2]
[1762425444126,7.38,159.39,159.38,0.2]
[1762425444552,100.67,159.43,159.38,0.91]
[1762425444729,13.72973505,159.42,159.38,0.91]
[1762425444934,8.05,159.42,159.38,0.91]
[1762425445228,100.0,159.43,159.39,0.71]
[1762425445436,0.67,159.42,159.38,0.91]
[1762425445738,6.34973505,159.42,159.38,0.2]
[1762425446140,7.38,159.41,159.38,0.2]
[1762425446344,55.67973505,159.39,159.38,0.2]
[1762425446551,111.95365436,159.39,159.38,0.2]
[1762425446725,112.62365436,159.39,159.38,0.2]
[1762425447369,140.59565436,159.39,159.38,0.2]
[1762425447537,122.41248205,159.39,159.38,0.2]
[1762425447732,129.79248205,159.39,159.38,0.2]
[1762425448132,122.41248205,159.39,159.38,0.2]
[1762425448365,126.2956368,159.39,159.38,0.2]
[1762425448570,118.9156368,159.39,159.38,0.2]
[1762425448731,119.69987671,159.39,159.38,0.2]
[1762425449157,127.07987671,159.39,159.38,0.2]
[1762425449347,118.9156368,159.39,159.38,0.2]
[1762425449653,119.69987671,159.39,159.38,0.2]
[1762425449866,127.07987671,159.39,159.38,0.2]
[1762425450163,126.2956368,159.39,159.38,0.2]
[1762425450344,145.1456368,159.39,159.38,0.2]
[1762425451553,137.7656368,159.39,159.38,0.2]
[1762425451759,145.1256368,159.39,159.38,0.2]
[1762425452429,102.1828898,159.39,159.38,0.2]
[1762425452631,109.5428898,159.39,159.38,0.2]
[1762425452825,59.5428898,159.39,159.38,0.2]
[1762425453058,127.952,159.39,159.38,0.2]
[1762425453237,136.40880911,159.39,159.38,0.2]
[1762425453558,115.81680911,159.39,159.38,0.2]
[1762425453741,130.1348898,159.39,159.38,0.2]
[1762425454365,80.1348898,159.39,159.38,0.2]
[1762425455255,59.5428898,159.39,159.38,0.2]
[1762425455463,109.5428898,159.39,159.38,0.2]
[1762425455670,109.12680911,159.39,159.38,0.2]
[1762425455959,109.5428898,159.39,159.38,0.2]
[1762425456775,59.5428898,159.39,159.38,0.2]
[1762425456975,27.952,159.39,159.38,0.2]
[1762425457271,27.952,159.39,159.38,3.0628898]
[1762425457272,7.36,159.39,159.38,3.0628898]
[1762425457569,52.1828898,159.43,159.38,3.0628898]
[1762425457773,27.952,159.42,159.39,0.68]
[1762425457984,52.1828898,159.46,159.41,2.1828898]
[1762425458266,50.0,159.43,159.39,2.8628898]
[1762425458470,7.36,159.42,159.4,0.68]
[1762425458962,50.0,159.43,159.4,0.68]
[1762425459271,7.36,159.42,159.4,0.68]
[1762425459943,70.592,159.45,159.4,0.68]
[1762425460144,70.592,159.45,159.41,2.1828898]
[1762425460348,20.592,159.45,159.41,2.1828898]
[1762425460551,7.36,159.44,159.41,0.68]
[1762425461156,50.0,159.43,159.38,0.88]
[1762425461345,50.0,159.43,159.39,0.68]
[1762425461673,7.36,159.42,159.39,2.8628898]
[1762425461964,20.592,159.45,159.4,2.1828898]
[1762425462150,56.270447,159.48,159.41,2.8628898]
[1762425462344,20.592,159.46,159.43,2.1828898]
[1762425462541,7.36,159.45,159.43,2.1828898]
[1762425462764,20.592,159.46,159.44,2.8628898]
[1762425462956,7.36,159.45,159.44,2.8628898]
[1762425463153,7.36,159.45,159.44,2.1828898]
[1762425463665,104.7,159.48,159.44,2.8628898]
[1762425463864,104.7,159.48,159.45,2.8628898]
[1762425464166,52.1828898,159.52,159.46,2.1828898]
[1762425464371,19.1428898,159.53,159.47,2.1828898]
[1762425464539,20.592,159.49,159.47,0.68]
[1762425464740,7.36,159.48,159.47,0.68]
[1762425465143,52.1828898,159.52,159.47,0.68]
[1762425465144,20.592,159.5,159.47,0.68]
[1762425465773,7.36,159.49,159.47,0.68]
[1762425465952,27.952,159.49,159.47,0.68]
[1762425466677,20.592,159.49,159.47,0.68]
[1762425466850,7.36,159.48,159.47,0.68]
[1762425467262,50.0,159.47,159.43,0.68]
[1762425467462,50.0,159.47,159.38,0.2]
[1762425467463,52.1828898,159.45,159.4,0.68]
[1762425467872,20.592,159.46,159.4,0.68]
[1762425468069,20.592,159.46,159.44,2.1828898]
[1762425468373,20.592,159.47,159.44,2.1828898]
[1762425468576,20.592,159.47,159.45,0.68]
[1762425468882,7.36,159.46,159.45,0.68]
[1762425469561,52.1828898,159.49,159.45,0.68]
[1762425470170,50.0,159.49,159.45,0.68]
[1762425470359,7.36,159.48,159.45,0.68]
[1762425470553,52.1828898,159.49,159.45,0.68]
[1762425470753,156.8828898,159.5,159.45,0.68]
[1762425471324,7.36,159.49,159.45,0.68]
[1762425471456,9.5428898,159.48,159.45,0.68]
[1762425471776,2.1828898,159.49,159.45,0.68]
[1762425471976,7.36,159.48,159.45,0.68]
[1762425472681,52.1828898,159.49,159.45,0.68]
[1762425472886,7.36,159.47,159.45,0.68]
[1762425473071,52.1828898,159.49,159.43,0.7]
[1762425473072,2.1828898,159.48,159.43,0.7]
[1762425473255,7.36,159.47,159.42,11.97171749]
[1762425473456,7.36,159.47,159.43,0.7]
[1762425473678,7.36,159.47,159.43,2.8828898]
[1762425473983,7.36,159.46,159.43,2.8828898]
[1762425474187,7.36,159.46,159.44,0.7]
[1762425474361,52.1828898,159.49,159.44,0.7]
[1762425474557,7.36,159.48,159.44,0.7]
[1762425474790,52.1828898,159.49,159.44,0.7]
[1762425474992,7.36,159.47,159.44,2.8828898]
[1762425475384,7.36,159.47,159.45,0.7]
[1762425476690,7.36,159.47,159.45,2.8828898]
[1762425476902,7.36,159.47,159.45,0.7]
[1762425477264,104.7,159.46,159.45,0.7]
[1762425477881,104.7,159.46,159.42,2.1828898]
[1762425478192,86.26594072,159.51,159.43,2.1828898]
[1762425478193,112.06,159.45,159.43,2.1828898]
[1762425478369,104.7,159.45,159.43,2.1828898]
[1762425478568,104.7,159.45,159.44,0.7]
[1762425478768,112.06,159.45,159.44,0.7]
[1762425479373,112.06,159.45,159.38,46.26650975]
[1762425479575,112.06,159.45,159.41,2.1828898]
[1762425479885,7.36,159.44,159.4,2.1828898]
[1762425480063,7.36,159.44,159.41,0.7]
[1762425480265,104.7,159.43,159.39,0.7]
[1762425480501,104.7,159.43,159.38,0.2]
[1762425480502,104.7,159.43,159.41,2.1828898]
[1762425480690,20.592,159.48,159.42,2.1828898]
[1762425480863,7.36,159.47,159.44,2.1828898]
[1762425481369,7.36,159.47,159.45,0.7]
[1762425482577,7.36,159.47,159.45,2.8828898]
[1762425483090,104.7,159.49,159.46,2.8828898]
[1762425483275,7.36,159.48,159.46,0.7]
[1762425483595,7.36,159.48,159.41,15.68203299]
[1762425483596,9.5428898,159.47,159.42,2.1828898]
[1762425483779,104.7,159.46,159.42,2.8828898]
[1762425484091,7.36,159.45,159.43,0.7]
[1762425485785,7.36,159.45,159.43,2.8828898]
[1762425487279,104.7,159.46,159.44,0.7]
[1762425487482,7.36,159.45,159.44,2.8828898]
[1762425488499,7.36,159.45,159.42,2.1828898]
[1762425488996,104.7,159.44,159.43,0.7]
[1762425489378,104.7,159.44,159.41,2.1828898]
[1762425489579,7.36,159.43,159.42,0.7]
[1762425490492,7.36,159.43,159.42,2.8828898]
[1762425491270,7.36,159.43,159.42,0.7]
[1762425491471,7.36,159.43,159.42,2.8828898]
[1762425491704,7.36,159.43,159.42,0.7]
[1762425491872,104.7,159.42,159.38,0.2]
[1762425492196,114.2428898,159.41,159.38,0.2]
[1762425492375,2.1828898,159.4,159.38,0.2]
[1762425492576,7.36,159.39,159.38,0.2]
[1762425499706,8.01,159.39,159.38,0.2]
[1762425499886,7.36,159.39,159.38,0.2]
[1762425500093,10.1928898,159.39,159.38,0.2]
[1762425500916,37.05880911,159.39,159.38,0.2]
[1762425501087,87.05880911,159.39,159.38,0.2]
[1762425501286,80.7848898,159.39,159.38,0.2]
[1762425501597,87.05880911,159.39,159.38,0.2]
[1762425502300,87.84304902,159.39,159.38,0.2]
[1762425502912,67.25104902,159.39,159.38,0.2]
[1762425503093,50.78423991,159.39,159.38,0.2]
[1762425503296,7.36,159.39,159.38,0.2]
[1762425503699,7.38,159.39,159.38,0.2]
[1762425504720,50.0,159.4,159.38,0.2]
[1762425504903,7.38,159.39,159.38,0.2]
[1762425507486,38.43835314,159.39,159.37,0.2]
[1762425507687,113.19702161,159.38,159.37,0.2]
[1762425507891,109.78882769,159.38,159.37,0.2]
[1762425508090,113.66702161,159.38,159.37,0.2]
[1762425508396,103.87819392,159.38,159.37,0.2]
[1762425508620,110.15250688,159.38,159.37,0.2]
[1762425509213,117.53250688,159.38,159.37,0.2]
[1762425509424,117.53250688,159.38,159.32,0.2]
[1762425509425,50.0,159.33,159.32,0.2]
[1762425509713,60.78819392,159.33,159.32,0.2]
[1762425509894,61.25819392,159.33,159.32,0.2]
[1762425510399,67.53447585,159.33,159.32,0.2]
[1762425510593,77.32330354,159.33,159.32,0.2]
[1762425511499,69.94330354,159.33,159.32,0.2]
[1762425511805,77.32330354,159.33,159.32,0.2]
[1762425512215,73.91510962,159.33,159.32,0.2]
[1762425512410,71.04702161,159.33,159.32,0.2]
[1762425512632,77.32330354,159.33,159.32,0.2]
[1762425512935,60.78819392,159.33,159.32,0.2]
[1762425513098,2.51722727,159.34,159.32,0.91]
[1762425513297,7.38,159.33,159.32,0.91]
[1762425513603,20.592,159.35,159.32,0.91]
[1762425513796,27.972,159.34,159.33,0.71]
[1762425514991,27.972,159.34,159.32,0.2]
[1762425515507,27.972,159.34,159.32,0.91]
[1762425515692,27.972,159.34,159.32,0.2]
[1762425516009,7.38,159.34,159.32,4.31819392]
[1762425516199,7.38,159.34,159.32,0.91]
[1762425516804,7.38,159.34,159.32,0.2]
[1762425517011,7.38,159.34,159.32,0.89]
[1762425517708,7.38,159.34,159.33,0.69]
[1762425519197,7.38,159.34,159.33,6.96628193]
[1762425519398,7.38,159.34,159.33,10.37447585]
[1762425520817,7.38,159.34,159.33,4.09819392]
[1762425521401,7.38,159.34,159.33,10.37447585]
[1762425521607,104.7,159.37,159.33,10.37447585]
[1762425521806,7.38,159.36,159.34,0.69]
[1762425524421,7.38,159.36,159.32,3.60819392]
[1762425524605,3.40819392,159.35,159.32,0.89]
[1762425524802,7.36,159.34,159.32,0.89]
[1762425525323,104.7,159.33,159.32,0.89]
[1762425526110,104.7,159.33,159.32,4.29819392]
[1762425526719,104.7,159.33,159.32,10.57486979]
[1762425528098,112.06,159.33,159.32,10.57486979]
[1762425528603,112.06,159.33,159.32,20.36369748]
[1762425529734,20.592,159.39,159.33,9.78882769]
[1762425529735,104.7,159.38,159.33,9.78882769]
[1762425530023,104.7,159.38,159.35,3.40819392]
[1762425530194,7.36,159.37,159.36,3.40819392]
[1762425530617,7.36,159.37,159.36,4.09819392]
[1762425533126,104.7,159.38,159.36,4.09819392]
[1762425533332,7.36,159.37,159.36,4.06819392]
[1762425533630,7.36,159.37,159.36,3.40819392]
[1762425534003,7.36,159.37,159.36,4.06819392]
[1762425534406,7.36,159.37,159.36,0.66]
[1762425535116,104.7,159.38,159.36,0.66]
[1762425535426,104.7,159.38,159.36,4.06819392]
[1762425535726,7.36,159.37,159.36,4.06819392]
[1762425535900,104.7,159.38,159.36,4.06819392]
[1762425536296,7.36,159.37,159.36,4.06819392]
[1762425536525,104.7,159.38,159.35,6.27548743]
[1762425536526,104.7,159.38,159.35,0.66]
[1762425536727,7.36,159.37,159.36,0.66]
[1762425537109,104.7,159.38,159.36,0.66]
[1762425537504,7.36,159.37,159.36,0.66]
[1762425538033,104.7,159.38,159.36,0.66]
[1762425538231,7.36,159.37,159.36,0.66]
[1762425539599,104.7,159.38,159.36,0.66]
[1762425540024,7.36,159.37,159.36,0.66]
[1762425540434,104.7,159.38,159.36,0.66]
[1762425540725,7.36,159.37,159.36,0.66]
[1762425541503,104.7,159.38,159.36,0.66]
[1762425541723,7.36,159.37,159.36,0.66]
[1762425542006,154.7,159.36,159.32,0.2]
[1762425542208,3.40819392,159.34,159.32,0.2]
[1762425542511,104.7,159.33,159.32,0.2]
[1762425542710,112.06,159.33,159.32,9.88486979]
[1762425542914,112.06,159.33,159.32,4.26819392]
[1762425543111,104.7,159.33,159.32,4.26819392]
[1762425543320,104.7,159.33,159.32,10.54486979]
[1762425543529,112.06,159.33,159.32,10.54486979]
[1762425543722,104.7,159.33,159.32,10.54486979]
[1762425544035,112.06,159.33,159.32,4.26819392]
[1762425544230,112.06,159.33,159.32,10.54486979]
[1762425544609,112.06,159.33,159.32,4.26819392]
[1762425544824,112.06,159.33,159.32,10.54486979]
[1762425545331,104.7,159.33,159.32,10.54486979]
[1762425545514,112.06,159.33,159.32,10.54486979]
[1762425547317,112.06,159.33,159.32,0.86]
[1762425547529,112.06,159.33,159.32,4.26819392]
[1762425548039,112.06,159.33,159.32,10.54486979]
[1762425549440,104.7,159.33,159.32,10.54486979]
[1762425549647,112.06,159.33,159.32,10.54486979]
[1762425549844,112.06,159.33,159.32,0.2]
[1762425550557,112.53,159.33,159.32,0.2]
[1762425550723,88.10647585,159.33,159.32,0.2]
[1762425550928,81.83019392,159.33,159.32,0.2]
[1762425551536,88.10647585,159.33,159.32,0.2]
[1762425551933,146.15330354,159.33,159.32,0.2]
[1762425552449,119.94330354,159.33,159.32,0.2]
[1762425552628,128.08783878,159.33,159.32,0.2]
[1762425552830,119.94330354,159.33,159.32,0.2]
[1762425553030,100.47,159.33,159.32,0.2]
[1762425553357,117.51447585,159.33,159.32,0.2]
[1762425553548,110.93901109,159.33,159.32,0.2]
[1762425553722,111.23819392,159.33,159.32,0.2]
[1762425554430,103.87819392,159.33,159.32,0.2]
[1762425554625,111.23819392,159.33,159.32,0.2]
[1762425555164,103.87819392,159.33,159.32,0.2]
[1762425555372,128.422,159.33,159.32,0.2]
[1762425555571,3.40819392,159.33,159.32,0.2]
[1762425555881,10.76819392,159.33,159.32,0.2]
[1762425556339,11.23819392,159.33,159.32,0.2]
[1762425556651,10.76819392,159.33,159.32,0.2]
[1762425558332,61.23819392,159.33,159.32,0.2]
[1762425559444,67.51447585,159.33,159.32,0.2]
[1762425560144,88.10647585,159.33,159.32,0.2]
[1762425560330,84.69828193,159.33,159.32,0.2]
[1762425560532,81.83019392,159.33,159.32,0.2]
[1762425560831,24.00019392,159.33,159.32,0.2]
[1762425561036,7.36,159.33,159.32,0.86]
[1762425561231,3.40819392,159.36,159.32,0.86]
[1762425561438,7.36,159.35,159.33,0.66]
[1762425561637,3.40819392,159.37,159.33,0.66]
[1762425561638,20.592,159.36,159.33,0.66]